Cogmind - Beta 14 *** ADVENTURER MODE // 2024.11.19 @ 22:02:14 Player: jkbot Result: Self-destructed Performance ------------- Evolutions (1) 500 Regions Visited (2) 400 Robots Destroyed (20) 100 Value Destroyed (639) 639 Prototype IDs (0) 0 Alien Tech Used (0) 0 Bonus (0) 0 TOTAL SCORE: 1639 Bonus ------- None Cogmind --------- Core Integrity 186/400 Matter 257/300 Energy 94/100 System Corruption 0% Temperature Hot (211) Movement Core (400) Ox7 Location -9/Materials Parts ------- > --- POWER (2) -------- (None) > --- PROPULSION (3) --- (None) > --- UTILITY (2) ------ Large Storage Unit > --- WEAPON (2) ------- Assault Rifle > --- INVENTORY (15) --- Ion Engine Light Ion Engine Light Nuclear Core Aluminum Leg Large Storage Unit High-capacity Matter Pod (31) EM Pulse Gun EM Pulse Gun Spread Laser Light Assault Rifle Light Cannon Datajack Peak State ------------ > --- POWER ------------ Light Ion Engine Improved Ion Engine > --- PROPULSION ------- Wheel Wheel Compact Wheel > --- UTILITY ---------- Large Storage Unit Medium Armor Plating > --- WEAPON ----------- Medium Laser Assault Rifle > --- INVENTORY -------- Ion Engine Light Ion Engine Light Nuclear Core Aluminum Leg Large Storage Unit Large Storage Unit EM Pulse Gun EM Pulse Gun Spread Laser Spread Laser Assault Rifle Light Assault Rifle Heavy Assault Rifle Light Cannon Datajack [Rating: 13] Favorites ----------- Power Light Ion Engine Engine Light Ion Engine Propulsion Light Treads Treads Light Treads Wheel Wheel Utility Large Storage Unit Storage Large Storage Unit Protection Medium Armor Plating Weapon Medium Laser Energy Gun Medium Laser Ballistic Gun Assault Rifle Build | -11 -10 -9 ------- Run | Yrd Mat Mat Slots Evolved 2 | . . 2 Power 1 | . . 1 Propulsion 1 | . . 1 Utility . | . . . Weapon . | . . . Parts Attached 16 | 6 5 5 Power 2 | 1 . 1 Engine 2 | 1 . 1 Core . | . . . Reactor . | . . . Propulsion 6 | 2 3 1 Treads 3 | 2 1 . Leg . | . . . Wheel 3 | . 2 1 Hover . | . . . Flight . | . . . Utility 3 | 1 2 . Device . | . . . Storage 2 | 1 1 . Processor . | . . . Hackware . | . . . Protection 1 | . 1 . Artifact . | . . . Weapon 5 | 2 . 3 Energy Gun 2 | 1 . 1 Energy Cannon . | . . . Ballistic Gun 3 | 1 . 2 Ballistic Cannon . | . . . Launcher . | . . . Special Weapon . | . . . Impact Weapon . | . . . Slashing Weapon . | . . . Piercing Weapon . | . . . Special Melee Weapon . | . . . Unidentified Prototypes . | . . . Parts Lost 11 | . 1 10 Power 2 | . . 2 Propulsion 4 | . 1 3 Utility 1 | . . 1 Weapon 4 | . . 4 Highest Loss Streak 10 | . 1 10 To Critical Strikes . | . . . Average Slot Usage (%) 86 | . 86 85 Engine 14 | . 14 15 Treads 15 | . 20 . Wheel 11 | . 5 28 Storage 13 | . 14 11 Protection 4 | . 2 9 Energy Gun 13 | . 14 11 Ballistic Gun 13 | . 14 10 Peak Build Rating 13 | 6 9 13 Average Rating 7 | 4 7 10 On Entrance 5 | . 6 9 Naked Turns . | . . . Heaviest Build 41 | 12 34 41 Greatest Support 40 | 40 40 36 Greatest Overweight (x) 7 | . 1 7 Average Overweight (x) . | . . . Largest Inventory Capacity 15 | 8 15 15 Average Capacity 14 | 6 14 15 Most Carried 15 | 7 15 15 Average Carried 12 | 4 12 13 Final Capacity 15 | 8 15 15 Final Carried 12 | 6 12 12 Class Distribution -------------------- 100% | Mutant Dominant Class ---------------- Mutant | -10/Materials Mutant | -9/Materials Resources | -11 -10 -9 ----------- Run | Yrd Mat Mat Matter Collected 499 | 209 218 72 Remotely . | . . . Salvage Created 680 | . 264 416 Parts 49 | . 22 27 Haulers Intercepted . | . . . Recyclers Shooed 1 | . . 1 Parts Field Recycled . | . . . Retrieved Matter . | . . . Parts Self-Destructed . | . . . Prevented . | . . . Kills | -11 -10 -9 ------- Run | Yrd Mat Mat Combat Hostiles Destroyed 17 | . 8 9 Guns 17 | . 8 9 Classes Destroyed 5 | . 3 2 Watcher 3 | . 2 1 Swarmer 3 | . 3 . Grunt 10 | . 5 5 Duelist 1 | . . 1 Sentry 3 | . . 3 Best Kill Streak 5 | . 3 5 Combat Bots Only 5 | . 3 5 Max Kills in Single Turn 1 | . 1 1 Gunslinging . | . . . Exploded . | . . . Melee . | . . . Uniques/NPCs Destroyed . | . . . Combat | -11 -10 -9 -------- Run | Yrd Mat Mat Hostile Shots Fired 145 | . 36 109 Missed 27 | . 11 16 Damage Taken 1201 | . 346 855 Core 275 | . 61 214 Absorbed by Shields . | . . . Ignored by Resistances 372 | . 103 269 Regen/Repaired (Parts) 77 | . 77 . Core Remaining (%) 87 | 100 75 . Volleys Fired 57 | . 24 33 Largest 2 | . 2 2 Hottest 115 | . 70 115 Shots Fired 98 | . 49 49 Gun 98 | . 49 49 Cannon . | . . . Launcher . | . . . Special . | . . . Kinetic 53 | . 25 28 Thermal 45 | . 24 21 Explosive . | . . . Electromagnetic . | . . . Robot Hit Streak 37 | . 13 37 Robot Miss Streak 2 | . 2 1 Penetration Max . | . . . Secondary Targets 4 | . 3 1 Max Gunslinging Chain 1 | . 1 1 Shots Hit Robots 77 | . 33 44 Core Hits 42 | . 20 22 Critical Kills . | . . . Critical Parts Destroyed . | . . . Critical Strikes 4 | . 3 1 Burn 4 | . 3 1 Melee Attacks . | . . . Impact . | . . . Slashing . | . . . Piercing . | . . . Sneak Attacks . | . . . Combat Hostiles . | . . . Follow-up Attacks . | . . . Damage Inflicted 1038 | . 450 588 Guns 1038 | . 450 588 Cannons . | . . . Explosions . | . . . Melee . | . . . Ramming . | . . . Kinetic 551 | . 199 352 Thermal 487 | . 251 236 Explosive . | . . . Electromagnetic . | . . . Impact . | . . . Slashing . | . . . Piercing . | . . . Highest Corruption 1 | . 1 . Average Corruption 1 | . 1 . Corruption Purged . | . . . Corruption Blocked . | . . . Effects 4 | . 4 . Message Errors 1 | . 1 . Energy Discharges 2 | . 2 . Misfires 1 | . 1 . Overload Shots . | . . . Overflow Damage . | . . . Projectiles . | . . . Explosions . | . . . Melee . | . . . Knockbacks . | . . . Impact . | . . . Kinetic . | . . . Secondary . | . . . Self-Inflicted Damage . | . . . Shots . | . . . Rammed . | . . . Targets Rammed . | . . . Kicked . | . . . Crushed . | . . . Highest Temperature 527 | . 129 527 Average Temperature 121 | . 43 190 Received Heat Transfer 714 | . 165 549 Effects 6 | . . 6 Energy Bleed 2 | . . 2 Interference 3 | . . 3 Damage (minor) 1 | . . 1 Siege Activations . | . . . Robots Corrupted . | . . . Combat Hostiles . | . . . Parts Fried . | . . . Impact Corruptions . | . . . Robots Melted . | . . . Combat Hostiles . | . . . Parts Melted 5 | . 3 2 Heat Transferred 1656 | . 962 694 Parts Sabotaged . | . . . Parts Stolen . | . . . Parts Stripped . | . . . Power Chain Reactions . | . . . Alert | -11 -10 -9 ------- Run | Yrd Mat Mat Peak Influence 259 | . 160 259 Initial 22 | . . 22 Average 60 | . 49 121 Maximum Alert Level 1 | . . 1 Low Security (%) 95 | 100 100 80 Level 1 4 | . . 19 Level 2 . | . . . Level 3 . | . . . Level 4 . | . . . Level 5 . | . . . High Security . | . . . Max Security . | . . . Squads Dispatched 3 | . 1 2 Investigation 2 | . 1 1 Extermination . | . . . Reinforcement 1 | . . 1 Assault . | . . . Garrison . | . . . Intercept . | . . . Searches Triggered . | . . . Construction Impeded . | . . . Haulers Reinforced . | . . . Active Scanning Responses . | . . . Cargo Convoy Interrupts . | . . . Stealth | -11 -10 -9 --------- Run | Yrd Mat Mat Distress Signals . | . . . Communications Jammed . | . . . Distress Signals . | . . . Times Spotted 26 | . 12 14 Peak Tracking Total 8 | . 3 8 Tactical Retreats . | . . . Traps | -11 -10 -9 ------- Run | Yrd Mat Mat Traps Triggered 2 | . 1 1 Indirectly . | . . . Trap Hack Attempts . | . . . Triggered . | . . . Disarmed . | . . . Reprogrammed . | . . . Reused . | . . . Traps Extracted . | . . . Installed . | . . . Triggered . | . . . Machines | -11 -10 -9 ---------- Run | Yrd Mat Mat Machines Disabled . | . . . Max in Single Turn . | . . . Machines Repaired . | . . . Machines Dismantled . | . . . Machines Sabotaged . | . . . Overloaded Fab Kills . | . . . Hacking | -11 -10 -9 --------- Run | Yrd Mat Mat Machines Accessed 7 | . 6 1 Terminals 4 | . 3 1 Fabricators . | . . . Repair Stations 1 | . 1 . Recycling Units 2 | . 2 . Scanalyzers . | . . . Garrison Access . | . . . Total Hacks 21 | . 20 1 Successful 19 | . 18 1 Failed 2 | . 2 . Catastrophic . | . . . Database Lockouts . | . . . Manual 1 | . . 1 Terminals 5 | . 4 1 Fabricators . | . . . Repair Stations 5 | . 5 . Recycling Units 11 | . 11 . Scanalyzers . | . . . Garrison Access . | . . . Terminal Hacks 4 | . 3 1 Alert Level 2 | . 1 1 Zone Layout 2 | . 2 . Fabricator Hacks . | . . . Repair Station Hacks 5 | . 5 . Scan Component 3 | . 3 . Repair 2 | . 2 . Recycling Unit Hacks 10 | . 10 . Recycle Component 7 | . 7 . Process 1 | . 1 . Retrieve Matter 1 | . 1 . Retrieve Components 1 | . 1 . Scanalyzer . | . . . Garrison Access Hacks . | . . . Unauthorized Hacks . | . . . Terminals . | . . . Fabricators . | . . . Repair Stations . | . . . Recycling Units . | . . . Scanalyzers . | . . . Garrison Access . | . . . Data Cores Recovered . | . . . Used . | . . . Hacking Detections 5 | . 5 . Full Trace Events 3 | . 3 . Feedback Events . | . . . Feedback Blocked . | . . . Robot Schematics Acquired . | . . . Robots Built . | . . . Authchips . | . . . Time . | . . . Total Robot Build Rating . | . . . Part Schematics Acquired . | . . . Parts Built . | . . . Authchips . | . . . Time . | . . . Total Part Build Rating . | . . . Parts Repaired 2 | . 2 . Time 52 | . 52 . Parts Recycled 7 | . 7 . Recycled Matter 61 | . 61 . Retrieved Matter 61 | . 61 . Retrieved Components . | . . . Parts Scanalyzed . | . . . Part Schematics Acquired . | . . . Parts Damaged . | . . . Bothacking | -11 -10 -9 ------------ Run | Yrd Mat Mat Used RIF Installer . | . . . Robots Hacked . | . . . Non-combat . | . . . Combat . | . . . Robot Hacks Applied . | . . . Relay Couplers Released . | . . . Fabnet Peak Effective % . | . . . Robots Rewired . | . . . Allies Hacked . | . . . Hacks Repelled . | . . . Allies | -11 -10 -9 -------- Run | Yrd Mat Mat Total Allies . | . . . Largest Group . | . . . Highest-Rated Group . | . . . Highest-Rated Ally . | . . . Total Orders . | . . . Ally Attacks . | . . . Total Damage . | . . . Kills . | . . . Allies Corrupted . | . . . Allies Melted . | . . . Intel | -11 -10 -9 ------- Run | Yrd Mat Mat Robot Analysis Total . | . . . Derelict Logs Recovered . | . . . Drone Launches . | . . . Drone Recoveries . | . . . Exploration | -11 -10 -9 ------------- Run | Yrd Mat Mat Turns Passed 1127 | 115 763 249 Spaces Moved 669 | 59 450 160 Core 2 | 1 . 1 Treads 355 | 58 297 . Legs . | . . . Wheels 312 | . 153 159 Hover . | . . . Flight . | . . . Fastest Speed 50 | 50 105 86 Average Speed 135 | 158 147 95 Slowest Speed 400 | 160 240 400 Overloaded Moves . | . . . Propulsion Burnouts . | . . . Robots Hopped . | . . . Cave-ins Triggered . | . . . Exploration Rate (%) 28 | 5 58 22 Regions Visited 2 Branch Regions . Pre-discovered Areas . | . . . Known Exits Taken . | . . . Unknown Exits Taken 2 | 1 1 . Scrap Searched . | . . . Spaces Dug . | . . . Terrain Destroyed . | . . . Melee . | . . . Projectile . | . . . AOE . | . . . Terrain Rammed . | . . . Walls Destroyed . | . . . Machines Disabled . | . . . Actions | -11 -10 -9 --------- Run | Yrd Mat Mat Total 789 | 80 503 206 Wait 11 | 5 5 1 Move 667 | 58 449 160 Hop . | . . . Pick Up 35 | 11 18 6 Fast Attach 1 | 1 . . Attach 15 | 5 5 5 Detach 1 | . 1 . Swap . | . . . Drop 2 | . 1 1 Fire 57 | . 24 33 Melee . | . . . Ram . | . . . Kick . | . . . Crush . | . . . Escape Stasis . | . . . Rewire . | . . . Trap . | . . . Miscellaneous . | . . . Route ------- -11/Scrapyard -10/Materials (discovered 3 exits: *Mat x2 / [*Min]) -9/Materials (discovered 2 exits: [*Mat] / [*Sto]) History --------- Turn | Location | Event 27 | -11/Scrapyard | Discovered new exit (range 15) 116 | -11/Scrapyard | Entered Materials 311 | -10/Materials | Build established: Mutant 375 | -10/Materials | Repaired Lgt. Treads 401 | -10/Materials | Repaired Assault Rifle? 403 | -10/Materials | Discovered new exit (range 16) 686 | -10/Materials | Discovered new exit (range 15) 817 | -10/Materials | Discovered new exit (range 12) 879 | -10/Materials | Entered another Materials area 879 | -9/Materials | Evolved 2 slots: Power x1, Propulsion x1 1038 | -9/Materials | Discovered new exit (range 12) 1057 | -9/Materials | Discovered new exit (range 15) 1121 | -9/Materials | Core integrity fell below 50% 1128 | -9/Materials | Self-destructed Last Messages --------------- 01102_ K-01 Serf cleans the Fusion Modulator. 01106_ K-01 Serf collects debris. 01109_ G-34 Mercenary destroyed. 01109_ K-01 Serf collects debris. 01110_ R-06 Scavenger collects Beam Rifle. 01113_ G-34 Mercenary destroyed. 01113_ R-06 Scavenger collects Lgt. Treads. 01113_ K-01 Serf collects debris. 01118_ Overheating: Spread Laser damaged (-3). 01119_ G-34 Mercenary destroyed. 01120_ K-01 Serf collects debris. 01122_ Spread Laser destroyed. 01123_ R-06 Scavenger collects Heat Sink. 01123_ K-01 Serf collects debris. 01124_ Overheating: System interference. 01124_ Hvy. Assault Rifle temporarily disabled. 01126_ K-01 Serf collects debris. 01127_ Hvy. Assault Rifle destroyed. 01128_ Overheating: System interference. 01128_ Assault Rifle temporarily disabled. Map ----- +----------------------------------------------------+ | ?????????????????????????????????????????????????? | | ?????????????????????????????????????????????????? | | ?????????????????????????????????????????????????? | | ?????????????????????????????????????????????????? | | ?????????????????????????????????????????????????? | | ?????????????????????????????????????????????????? | | ?????????????????????????????????????????????????# | | ???????????????????????????????????????????????? | | ???????????????????????????????????????????????? | | ???????????????????????????????????????????????? | | ?????????????????????????????????????????????????? | | ?????????????????????????? ???????????????????? | | ?????????????????????????? "???????????????????? | | ?????????????????????????# #???????????????????? | | ????????????????????????? ######????#?????????? | | ????????????????????????? ? ??? ###???????? | | ????????????????????????? ?? ????????? | | ?????????????????????????# """ """ #????????? | | ?????????????????????????# """ """ #????????? | | ?????????????????????????# """ """ #????????? | | ?????????????????????????# #????????? | | ?????????????????????????#==a #???????## | | ???????????###???????????#gk""" #######?# | | ???????????# !#########*%""" "T" # | | ?????????? u %""" """ # | | ?????????? < r%@* g + | | ?????????? % %=[ # | | ???????????# = ############# ## | | ??????????????????# # | | ??????????????????# # ##/## | | ??????????????????# + # | | ??????????????????# # #! | | ??????????????????# ############# # | | ??????????????????# #???????????# #[[ | | ??????????????????# #???????????# #[ | | ???????????# ########+####???????????# # | | ???????????# #????????????## %##### | | ???????????? T ############## # | | ???????????# # ? | | ???????????# ####### ############## % + ?? | | ???????????###?????????# #????????????# ! #??? | | ???????????????????????# #????????????# #??? | | ???????????????????????# #????????????### ###??? | | ???????????????????????# #??????????????# #????? | | ???????????????????????# #????????????### ###??? | | ???????????????????????# #????????????# #??? | | ???????????????????????+ +????????????# " #### | | ???????????????????????# #????????????# "T | | ???????????????????????# < #????????????# #### | | ???????????????????????# ?????????????# #??? | +----------------------------------------------------+ Best States ------------- Heat Dissipation 28 Energy Generation 17 Energy Capacity 290 Matter Stores 300 Matter Capacity 300 Sight Range 16 Terrain Scan Density 10 Armor Coverage 225 Resistance: KI 20 Resistance: TH 20 Resistance: EX 20 Resistance: EM 20 Resistance: I 20 Resistance: S 20 Resistance: P 20 Evasion (%) 42 Recoil Reduction 2 Offensive Hacking 10 Item Schematics ----------------- None Robot Schematics ------------------ None Fabricated ------------ Nothing Alien Tech Used ----------------- None Achievements -------------- None Challenges ------------ None Game ------ Seed GravitonArmorPick Manual? 0 Play Time 00:28:01 Cumulative 4.8 hours Start 2024.11.19 @ 18:58:01 End 2024.11.19 @ 22:02:14 Sessions 3 Manual Loads 0 Difficulty Adventurer Special Mode None Game No. 8 Rogue 0 Adventurer 8 Explorer 0 Win Type - Total 0 Types 0/0/0/0/0/0/0/0/0 Lore% 1 Gallery% 6 Achievement% 10 Wizard Run 0 Options --------- Layout 1 ASCII 0 Keyboard 0 Movement Mouse Keybinds 0 Fullscreen 1 Font 32/SmallcapsGlow Map View 50x40 Zoom Use 0% Tactical HUD 1 Map Filters NONE Filters NONE Steam 1 RUN: dc7853e8-2b62-4f05-8733-7f1a24d2a5a1